[Event "Rapidturnier Deutsche Meister"]
[Site "Leipzig"]
[Date "2020.10.03"]
[Round "3.8"]
[White "Bastian, Herbert"]
[Black "Glienke, Manfred"]
[Result "1/2-1/2"]
[ECO "C44"]
[WhiteElo "2269"]
[BlackElo "2231"]
[Annotator "ChessBase"]
[PlyCount "26"]
[EventDate "2020.10.03"]
[EventType "swiss"]
[EventCountry "GER"]
[SourceTitle "playchess.com"]
[Source "ChessBase"]
[SourceQuality "1"]
[TimeControl "900+5"]

1. e4 {[%emt 0:00:00]} d6 {[%emt 0:00:00]} 2. d4 {[%emt 0:00:04]} Nf6 {[%emt 0:00:00]} 3. Bd3 {[%emt 0:00:03]} e5 {[%emt 0:00:00]} 4. c3 {[%emt 0:00:08]} Nc6 {[%emt 0:00:09]} 5. Nf3 {[%emt 0:00:22]} g6 {[%emt 0:00:32]} 6. O-O {[%emt 0:00:14]} Bg7 {[%emt 0:00:01]} 7. d5 {[%emt 0:00:14]} Ne7 {[%emt 0:00:05]} 8. c4 {[%emt 0:00:19]} O-O {[%emt 0:00:03]} 9. Nc3 {[%emt 0:00:01]} Nh5 {[%emt 0:00:02]} 10. g3 {[%emt 0:00:52]} Bg4 {[%emt 0:00:39]} 11. Be2 {[%emt 0:00:11]} f5 {[%emt 0:00:35]} 12. Ng5 {[%emt 0:00:14]} Bxe2 {[%emt 0:00:17]} 13. Qxe2 {[%emt 0:00:03]} Qd7 {[%emt 0:00:06]} 1/2-1/2

[Event "Rapidturnier Deutsche Meister"]
[Site "Leipzig"]
[Date "2020.10.03"]
[Round "3.9"]
[White "Just, Gabriele"]
[Black "Heinatz, Gundula"]
[Result "0-1"]
[ECO "A40"]
[WhiteElo "1837"]
[BlackElo "2197"]
[Annotator "ChessBase"]
[PlyCount "72"]
[EventDate "2020.10.03"]
[EventType "swiss"]
[EventCountry "GER"]
[SourceTitle "playchess.com"]
[Source "ChessBase"]
[SourceQuality "1"]
[TimeControl "900+5"]

1. d4 {[%emt 0:00:02]} g6 {[%emt 0:00:00]} 2. Nf3 {[%emt 0:00:06]} Bg7 {[%emt 0:00:03]} 3. Bg5 {[%emt 0:00:11]} h6 {[%emt 0:00:13]} 4. Bh4 {[%emt 0:00:05]} c5 {[%emt 0:00:15]} 5. e3 {[%emt 0:00:24]} Qb6 {[%emt 0:01:22]} 6. Na3 {[%emt 0:03:54]} cxd4 {[%emt 0:02:02]} 7. Nxd4 {[%emt 0:00:25]} a6 {[%emt 0:03:35]} 8. Rb1 {[%emt 0:00:13]} Nc6 {[%emt 0:00:38]} 9. Nc4 {[%emt 0:00:35]} Qc7 {[%emt 0:00:28]} 10. Bg3 {[%emt 0:00:25]} d6 {[%emt 0:00:12]} 11. c3 {[%emt 0:00:22]} b5 {[%emt 0:00:59]} 12. Nd2 {[%emt 0:00:16]} Bb7 {[%emt 0:00:32]} 13. f3 {[%emt 0:01:10]} Nf6 {[%emt 0:00:15]} 14. Bd3 {[%emt 0:00:07]} Ne5 {[%emt 0:00:45]} 15. Bxe5 {[%emt 0:00:46]} dxe5 {[%emt 0:00:02]} 16. Nc2 {[%emt 0:00:10]} Rd8 {[%emt 0:00:27]} 17. Nb4 {[%emt 0:02:19]} O-O {[%emt 0:00:12]} 18. Be2 {[%emt 0:00:02]} e4 {[%emt 0:00:27]} 19. Nc2 {[%emt 0:00:37]} exf3 {[%emt 0:00:11]} 20. Bxf3 {[%emt 0:00:09]} Ne4 {[%emt 0:00:19]} 21. Bxe4 {[%emt 0:01:12]} Bxe4 {[%emt 0:00:02]} 22. Nd4 {[%emt 0:01:00]} Bxg2 {[%emt 0:00:28]} 23. Kf2 {[%emt 0:00:15]} Bxh1 {[%emt 0:00:14]} 24. Qxh1 {[%emt 0:00:04]} e5 {[%emt 0:00:15]} 25. N4f3 {[%emt 0:00:34]} Qe7 {[%emt 0:00:34]} 26. h4 {[%emt 0:01:01]} e4 {[%emt 0:00:06]} 27. Nd4 {[%emt 0:00:02]} Bxd4 {[%emt 0:00:12]} 28. cxd4 {[%emt 0:00:09]} f5 {[%emt 0:00:10]} 29. Rg1 {[%emt 0:00:08]} Kh7 {[%emt 0:00:04]} 30. Ke2 {[%emt 0:00:18]} Rc8 {[%emt 0:00:14]} 31. Qg2 {[%emt 0:00:06]} Rf6 {[%emt 0:00:10]} 32. Kd1 {[%emt 0:00:22]} Qc7 {[%emt 0:00:11]} 33. h5 {[%emt 0:00:08]} g5 {[%emt 0:00:09]} 34. Ke2 {[%emt 0:00:04]} Qc2 {[%emt 0:00:09]} 35. b3 {[%emt 0:00:07]} Qd3+ {[%emt 0:00:03]} 36. Kd1 {[%emt 0:00:05]} Rfc6 {[%emt 0:00:09]} 0-1

[Event "Rapidturnier Deutsche Meister"]
[Site "Leipzig"]
[Date "2020.10.03"]
[Round "4.2"]
[White "Wagner-Michel, Annett"]
[Black "Kunze, Kerstin"]
[Result "0-1"]
[ECO "C45"]
[WhiteElo "2011"]
[BlackElo "2037"]
[Annotator "ChessBase"]
[PlyCount "102"]
[EventDate "2020.10.03"]
[EventType "swiss"]
[EventCountry "GER"]
[SourceTitle "playchess.com"]
[Source "ChessBase"]
[SourceQuality "1"]
[TimeControl "900+5"]

1. e4 {[%emt 0:00:00]} e5 {[%emt 0:00:02]} 2. Nf3 {[%emt 0:00:01]} Nc6 {[%emt 0:00:03]} 3. d4 {[%emt 0:00:02]} exd4 {[%emt 0:00:26]} 4. Nxd4 {[%emt 0:00:03]} Bc5 {[%emt 0:00:37]} 5. Nb3 {[%emt 0:00:04]} Bb6 {[%emt 0:02:18]} 6. Nc3 {[%emt 0:00:34]} Qf6 {[%emt 0:01:51]} 7. Qe2 {[%emt 0:00:24]} Nge7 {[%emt 0:00:19]} 8. h4 {[%emt 0:00:50]} h6 {[%emt 0:01:11]} 9. Be3 {[%emt 0:02:02]} Bxe3 {[%emt 0:04:18]} 10. Qxe3 {[%emt 0:00:02]} Nb4 {[%emt 0:00:01]} 11. O-O-O {[%emt 0:00:17]} Qb6 {[%emt 0:00:39]} 12. Qg3 {[%emt 0:02:19]} O-O {[%emt 0:00:25]} 13. f4 {[%emt 0:00:56]} a5 {[%emt 0:00:18]} 14. Nd4 {[%emt 0:00:36]} d5 {[%emt 0:00:29]} 15. a3 {[%emt 0:00:48]} c5 {[%emt 0:00:01]} 16. Ndb5 {[%emt 0:00:33]} d4 {[%emt 0:00:22]} 17. Na4 {[%emt 0:00:07]} Qe6 {[%emt 0:00:23]} 18. axb4 {[%emt 0:01:10]} axb4 {[%emt 0:00:41]} 19. Nxc5 {[%emt 0:00:10]} Ra1+ {[%emt 0:00:22]} 20. Kd2 {[%emt 0:00:02]} Rxd1+ {[%emt 0:00:14]} 21. Kxd1 {[%emt 0:00:01]} Qa2 {[%emt 0:00:09]} 22. Qb3 {[%emt 0:00:40]} Bg4+ {[%emt 0:00:47]} 23. Ke1 {[%emt 0:00:58]} Qb1+ {[%emt 0:00:02]} 24. Kf2 {[%emt 0:00:01]} Qc1 {[%emt 0:00:03]} 25. Nd3 {[%emt 0:00:17]} Qd2+ {[%emt 0:00:02]} 26. Kg1 {[%emt 0:00:41]} Ng6 {[%emt 0:00:13]} 27. Nf2 {[%emt 0:00:56]} Be6 {[%emt 0:00:23]} 28. Qd3 {[%emt 0:00:22]} Qxf4 {[%emt 0:00:02]} 29. Nxd4 {[%emt 0:00:10]} Ne5 {[%emt 0:00:03]} 30. Qe2 {[%emt 0:00:12]} Bc4 {[%emt 0:00:05]} 31. Qh5 {[%emt 0:00:19]} Bxf1 {[%emt 0:00:07]} 32. Kxf1 {[%emt 0:00:07]} Nc4 {[%emt 0:00:14]} 33. Qe2 {[%emt 0:00:15]} Qc1+ {[%emt 0:00:03]} 34. Qd1 {[%emt 0:00:08]} Ne3+ {[%emt 0:00:01]} 35. Ke2 {[%emt 0:00:03]} Nxd1 36. Rxd1 {[%emt 0:00:02]} Qxb2 {[%emt 0:00:02]} 37. Rd2 {[%emt 0:00:10]} Qc3 {[%emt 0:00:03]} 38. Ng4 {[%emt 0:00:06]} Qg3 {[%emt 0:00:03]} 39. Ne3 {[%emt 0:00:07]} Qxh4 {[%emt 0:00:01]} 40. e5 {[%emt 0:00:07]} Qh5+ {[%emt 0:00:01]} 41. Nf3 {[%emt 0:00:02]} Re8 {[%emt 0:00:06]} 42. Kf2 {[%emt 0:00:01]} Qg6 {[%emt 0:00:08]} 43. Nd5 {[%emt 0:00:07]} Qe4 {[%emt 0:00:08]} 44. Nc7 {[%emt 0:00:10]} Rc8 {[%emt 0:00:06]} 45. Re2 {[%emt 0:00:10]} Qc6 {[%emt 0:00:08]} 46. e6 {[%emt 0:00:36]} Qxc7 {[%emt 0:00:03]} 47. e7 {[%emt 0:00:17]} Re8 {[%emt 0:00:01]} 48. Rd2 {[%emt 0:00:11]} Rxe7 {[%emt 0:00:03]} 49. Nd4 Qc5 {[%emt 0:00:02]} 50. Kg3 {[%emt 0:00:05]} Rd7 {[%emt 0:00:02]} 51. Nb3 {[%emt 0:00:10]} Qc3+ {[%emt 0:00:04]} 0-1

[Event "Rapidturnier Deutsche Meister"]
[Site "Leipzig"]
[Date "2020.10.03"]
[Round "4.3"]
[White "Tischbierek, Raj"]
[Black "Knaak, Rainer"]
[Result "0-1"]
[ECO "A00"]
[WhiteElo "2367"]
[BlackElo "2476"]
[Annotator "ChessBase"]
[PlyCount "84"]
[EventDate "2020.10.03"]
[EventType "swiss"]
[EventCountry "GER"]
[SourceTitle "playchess.com"]
[Source "ChessBase"]
[SourceQuality "1"]
[TimeControl "900+5"]

1. g3 {[%emt 0:00:00]} d5 {[%emt 0:00:13]} 2. Bg2 {[%emt 0:00:02]} e5 {[%emt 0:00:08]} 3. d3 {[%emt 0:00:03]} Nf6 {[%emt 0:00:04]} 4. Nf3 {[%emt 0:00:06]} Nbd7 {[%emt 0:00:39]} 5. O-O {[%emt 0:00:13]} Bd6 {[%emt 0:00:01]} 6. Nc3 {[%emt 0:00:20]} c6 {[%emt 0:00:13]} 7. e4 {[%emt 0:00:07]} O-O {[%emt 0:00:13]} 8. Nh4 {[%emt 0:01:24]} d4 {[%emt 0:00:41]} 9. Ne2 {[%emt 0:00:04]} g6 {[%emt 0:00:27]} 10. h3 {[%emt 0:02:00]} Re8 {[%emt 0:00:05]} 11. c4 {[%emt 0:01:32]} Nh5 {[%emt 0:01:49]} 12. Bd2 {[%emt 0:01:12]} a5 {[%emt 0:00:05]} 13. Qe1 {[%emt 0:01:36]} b5 {[%emt 0:00:41]} 14. cxb5 {[%emt 0:01:11]} cxb5 {[%emt 0:00:02]} 15. f4 {[%emt 0:00:02]} b4 {[%emt 0:00:48]} 16. Rd1 {[%emt 0:03:57]} Ba6 {[%emt 0:00:19]} 17. Nc1 {[%emt 0:00:05]} Nc5 {[%emt 0:00:39]} 18. Rf3 {[%emt 0:00:08]} Na4 {[%emt 0:00:11]} 19. fxe5 {[%emt 0:00:54]} Bxe5 {[%emt 0:00:03]} 20. Qf2 {[%emt 0:00:11]} Ra7 {[%emt 0:01:26]} 21. Rf1 {[%emt 0:00:02]} f6 {[%emt 0:03:27]} 22. Bf4 {[%emt 0:00:57]} Nxf4 {[%emt 0:01:14]} 23. gxf4 {[%emt 0:00:02]} Bd6 {[%emt 0:00:02]} 24. e5 {[%emt 0:00:27]} fxe5 {[%emt 0:00:31]} 25. fxe5 {[%emt 0:00:02]} Bxe5 {[%emt 0:00:23]} 26. Rf7 {[%emt 0:00:14]} Rxf7 {[%emt 0:00:48]} 27. Qxf7+ {[%emt 0:00:01]} Kh8 {[%emt 0:00:00]} 28. Nf3 {[%emt 0:00:11]} Bg7 {[%emt 0:00:14]} 29. Ng5 {[%emt 0:00:11]} Rf8 {[%emt 0:00:40]} 30. h4 {[%emt 0:00:06]} Nc5 {[%emt 0:00:15]} 31. Bd5 {[%emt 0:00:02]} h6 {[%emt 0:00:24]} 32. Qxg6 {[%emt 0:00:02]} Rxf1+ {[%emt 0:00:07]} 33. Kxf1 {[%emt 0:00:01]} Qf6+ {[%emt 0:00:04]} 34. Qxf6 {[%emt 0:00:02]} Bxf6 {[%emt 0:00:00]} 35. Nf3 {[%emt 0:00:17]} Nxd3 {[%emt 0:00:04]} 36. Nxd3 {[%emt 0:00:01]} Bxd3+ {[%emt 0:00:01]} 37. Ke1 {[%emt 0:00:02]} Kg7 {[%emt 0:00:08]} 38. Kd2 {[%emt 0:00:01]} Bf5 {[%emt 0:00:02]} 39. Bc4 {[%emt 0:00:04]} Be4 {[%emt 0:00:03]} 40. Be2 {[%emt 0:00:02]} d3 {[%emt 0:00:09]} 41. Bd1 {[%emt 0:00:05]} Bxb2 {[%emt 0:00:02]} 42. Ne1 {[%emt 0:00:06]} Bc3+ {[%emt 0:00:25]} 0-1

[Event "Rapidturnier Deutsche Meister"]
[Site "Leipzig"]
[Date "2020.10.03"]
[Round "4.4"]
[White "Paehtz, Thomas"]
[Black "Hecht, Hans-Joachim"]
[Result "1-0"]
[ECO "C00"]
[WhiteElo "2297"]
[BlackElo "2311"]
[Annotator "ChessBase"]
[PlyCount "130"]
[EventDate "2020.10.03"]
[EventType "swiss"]
[EventCountry "GER"]
[SourceTitle "playchess.com"]
[Source "ChessBase"]
[SourceQuality "1"]
[TimeControl "900+5"]

1. e4 {[%emt 0:00:00]} e6 {[%emt 0:00:00]} 2. Nf3 {[%emt 0:00:09]} d5 {[%emt 0:00:00]} 3. e5 {[%emt 0:00:03]} c5 {[%emt 0:00:04]} 4. b4 {[%emt 0:00:02]} b6 {[%emt 0:00:00]} 5. c3 {[%emt 0:00:09]} Ne7 {[%emt 0:00:09]} 6. d4 {[%emt 0:00:50]} Nf5 {[%emt 0:00:03]} 7. a3 {[%emt 0:01:01]} a5 {[%emt 0:00:35]} 8. b5 {[%emt 0:00:38]} a4 {[%emt 0:02:14]} 9. Bd3 {[%emt 0:00:15]} Bd7 {[%emt 0:00:24]} 10. Nbd2 {[%emt 0:01:52]} c4 {[%emt 0:00:08]} 11. Bxf5 {[%emt 0:00:31]} exf5 {[%emt 0:00:02]} 12. Nf1 {[%emt 0:00:20]} Be7 {[%emt 0:00:26]} 13. Ne3 {[%emt 0:00:07]} Be6 {[%emt 0:00:14]} 14. h4 {[%emt 0:01:13]} h5 {[%emt 0:02:18]} 15. g3 {[%emt 0:01:01]} Qd7 {[%emt 0:00:24]} 16. Ng2 {[%emt 0:00:49]} Qxb5 {[%emt 0:00:26]} 17. Bg5 {[%emt 0:00:03]} Nc6 {[%emt 0:00:34]} 18. Bxe7 {[%emt 0:00:47]} Nxe7 {[%emt 0:00:02]} 19. Rb1 {[%emt 0:00:02]} Qc6 {[%emt 0:00:43]} 20. O-O {[%emt 0:00:41]} b5 {[%emt 0:00:54]} 21. Nf4 {[%emt 0:00:33]} g6 {[%emt 0:00:02]} 22. Ng5 {[%emt 0:00:11]} Kd7 {[%emt 0:00:10]} 23. Re1 {[%emt 0:00:15]} Rhf8 {[%emt 0:01:06]} 24. Re2 {[%emt 0:00:06]} Kc7 {[%emt 0:00:12]} 25. Rb4 {[%emt 0:00:22]} Rab8 {[%emt 0:00:01]} 26. Reb2 {[%emt 0:00:06]} Rb6 {[%emt 0:00:02]} 27. Qe1 {[%emt 0:00:32]} Rfb8 {[%emt 0:00:24]} 28. Qe3 {[%emt 0:00:43]} Qd7 {[%emt 0:00:57]} 29. Rb1 {[%emt 0:00:02]} Nc6 {[%emt 0:00:35]} 30. R4b2 {[%emt 0:00:01]} Na5 {[%emt 0:00:19]} 31. Ngxe6+ {[%emt 0:00:31]} fxe6 {[%emt 0:00:30]} 32. Nxg6 {[%emt 0:00:03]} Nb3 {[%emt 0:00:01]} 33. Qh6 {[%emt 0:00:18]} b4 {[%emt 0:00:52]} 34. axb4 {[%emt 0:00:02]} a3 {[%emt 0:00:01]} 35. Ra2 {[%emt 0:00:03]} Ra8 {[%emt 0:00:01]} 36. Re1 {[%emt 0:00:19]} Rba6 {[%emt 0:01:25]} 37. Nf4 {[%emt 0:00:56]} Qf7 {[%emt 0:00:30]} 38. Qxh5 {[%emt 0:00:00]} Qxh5 {[%emt 0:00:03]} 39. Nxh5 {[%emt 0:00:00]} Kc6 {[%emt 0:00:03]} 40. Nf4 {[%emt 0:00:00]} Kb5 {[%emt 0:00:01]} 41. Kg2 {[%emt 0:00:00]} Ka4 {[%emt 0:00:01]} 42. h5 {[%emt 0:00:00]} Rb8 {[%emt 0:00:27]} 43. h6 {[%emt 0:00:00]} Rh8 {[%emt 0:00:03]} 44. Rh1 {[%emt 0:00:04]} Rh7 {[%emt 0:00:00]} 45. Ng6 {[%emt 0:00:11]} Ra8 {[%emt 0:00:07]} 46. Nf4 {[%emt 0:00:31]} Rah8 {[%emt 0:00:14]} 47. Nxe6 {[%emt 0:00:32]} Rxh6 {[%emt 0:00:01]} 48. Rxh6 {[%emt 0:00:02]} Rxh6 {[%emt 0:00:01]} 49. Nf4 {[%emt 0:00:08]} Nc1 {[%emt 0:00:09]} 50. Ra1 {[%emt 0:00:45]} Nd3 {[%emt 0:00:01]} 51. Nxd5 {[%emt 0:00:06]} Kb3 {[%emt 0:00:01]} 52. b5 {[%emt 0:00:14]} Kb2 {[%emt 0:00:02]} 53. Rxa3 {[%emt 0:00:19]} Kxa3 {[%emt 0:00:01]} 54. b6 {[%emt 0:00:02]} Kb3 {[%emt 0:00:42]} 55. b7 {[%emt 0:00:05]} Rh8 {[%emt 0:00:01]} 56. e6 {[%emt 0:00:05]} Ne1+ {[%emt 0:00:14]} 57. Kf1 {[%emt 0:00:03]} Nf3 {[%emt 0:00:01]} 58. Ke2 {[%emt 0:00:03]} Ng5 {[%emt 0:00:03]} 59. e7 {[%emt 0:00:05]} Ne4 {[%emt 0:00:02]} 60. Kf3 {[%emt 0:00:28]} Nxc3 {[%emt 0:00:03]} 61. Nxc3 {[%emt 0:00:02]} Kxc3 {[%emt 0:00:01]} 62. d5 {[%emt 0:00:02]} Kb2 {[%emt 0:00:17]} 63. d6 {[%emt 0:00:02]} c3 {[%emt 0:00:01]} 64. d7 {[%emt 0:00:01]} c2 {[%emt 0:00:00]} 65. d8=Q {[%emt 0:00:02]} c1=Q {[%emt 0:00:00]} 1-0

[Event "Rapidturnier Deutsche Meister"]
[Site "Leipzig"]
[Date "2020.10.03"]
[Round "4.5"]
[White "Boensch, Uwe"]
[Black "Schoeneberg, Manfred"]
[Result "1-0"]
[ECO "E12"]
[WhiteElo "2508"]
[BlackElo "2133"]
[Annotator "ChessBase"]
[PlyCount "71"]
[EventDate "2020.10.03"]
[EventType "swiss"]
[EventCountry "GER"]
[SourceTitle "playchess.com"]
[Source "ChessBase"]
[SourceQuality "1"]
[TimeControl "900+5"]

1. d4 {[%emt 0:00:00]} Nf6 {[%emt 0:00:01]} 2. c4 {[%emt 0:00:00]} e6 {[%emt 0:00:03]} 3. Nf3 {[%emt 0:00:01]} b6 4. a3 {[%emt 0:00:05]} Bb7 {[%emt 0:00:02]} 5. Nc3 {[%emt 0:00:02]} Be7 {[%emt 0:00:08]} 6. d5 {[%emt 0:00:13]} exd5 {[%emt 0:00:03]} 7. cxd5 {[%emt 0:00:01]} d6 {[%emt 0:00:08]} 8. e4 {[%emt 0:00:11]} Nbd7 {[%emt 0:00:00]} 9. Bb5 {[%emt 0:00:38]} O-O {[%emt 0:00:02]} 10. Nd4 {[%emt 0:00:07]} Nc5 {[%emt 0:00:24]} 11. f3 {[%emt 0:00:24]} a6 {[%emt 0:01:01]} 12. Bc6 {[%emt 0:00:03]} Bxc6 {[%emt 0:00:22]} 13. Nxc6 {[%emt 0:00:02]} Qe8 {[%emt 0:00:49]} 14. O-O {[%emt 0:00:09]} Nfd7 {[%emt 0:00:19]} 15. b4 {[%emt 0:00:25]} Bf6 {[%emt 0:00:31]} 16. Bb2 {[%emt 0:00:04]} Nb7 {[%emt 0:00:07]} 17. Qd2 {[%emt 0:00:28]} Nd8 {[%emt 0:01:09]} 18. Rac1 {[%emt 0:00:01]} b5 {[%emt 0:00:50]} 19. Na5 {[%emt 0:00:29]} Nb6 {[%emt 0:01:27]} 20. Ne2 {[%emt 0:00:03]} Bxb2 {[%emt 0:00:31]} 21. Qxb2 {[%emt 0:00:01]} Rc8 {[%emt 0:00:44]} 22. Nd4 {[%emt 0:00:30]} Qe5 {[%emt 0:00:25]} 23. Qd2 {[%emt 0:00:10]} Re8 {[%emt 0:00:36]} 24. Rfe1 {[%emt 0:00:19]} h6 {[%emt 0:00:38]} 25. Nf5 {[%emt 0:00:50]} Qf6 {[%emt 0:00:52]} 26. Rc2 {[%emt 0:01:09]} Re5 {[%emt 0:00:53]} 27. Ne3 {[%emt 0:00:15]} Rg5 {[%emt 0:00:19]} 28. Kh1 {[%emt 0:00:33]} Qf4 {[%emt 0:00:29]} 29. Nec4 {[%emt 0:03:18]} Qxd2 {[%emt 0:00:41]} 30. Nxd2 {[%emt 0:00:01]} Re5 {[%emt 0:00:18]} 31. Rec1 {[%emt 0:00:02]} Kf8 {[%emt 0:00:24]} 32. Kg1 {[%emt 0:00:30]} Re7 {[%emt 0:00:47]} 33. Nc6 {[%emt 0:01:58]} Nxc6 {[%emt 0:00:12]} 34. Rxc6 {[%emt 0:00:01]} f5 {[%emt 0:01:19]} 35. Rxb6 {[%emt 0:00:04]} Rce8 36. Rbc6 {[%emt 0:00:03]} 1-0

[Event "Rapidturnier Deutsche Meister"]
[Site "Leipzig"]
[Date "2020.10.03"]
[Round "4.6"]
[White "Heinatz, Gundula"]
[Black "Seidemann, Ulricke"]
[Result "1/2-1/2"]
[WhiteElo "2197"]
[BlackElo "2043"]
[Annotator "ChessBase"]
[PlyCount "25"]
[EventDate "2020.10.03"]
[EventType "swiss"]
[EventCountry "GER"]
[SourceTitle "playchess.com"]
[Source "ChessBase"]
[SourceQuality "1"]
[TimeControl "900+5"]

1. d4 {[%emt 0:00:00]} d5 {[%emt 0:00:00]} 2. Nf3 {[%emt 0:00:00]} e6 {[%emt 0:00:00]} 3. Bf4 {[%emt 0:00:12]} c5 {[%emt 0:00:11]} 4. e3 {[%emt 0:00:14]} Bd6 {[%emt 0:00:19]} 5. Bg3 {[%emt 0:00:22]} cxd4 {[%emt 0:00:27]} 6. exd4 {[%emt 0:00:05]} Nf6 {[%emt 0:00:09]} 7. Nbd2 {[%emt 0:00:31]} O-O {[%emt 0:00:03]} 8. Bd3 {[%emt 0:00:05]} Nc6 {[%emt 0:00:18]} 9. c3 {[%emt 0:00:37]} Re8 {[%emt 0:00:08]} 10. Ne5 {[%emt 0:00:33]} Qc7 {[%emt 0:00:47]} 11. f4 {[%emt 0:00:14]} g6 {[%emt 0:00:42]} 12. O-O {[%emt 0:00:11]} Nh5 {[%emt 0:00:25]} 13. Bh4 {[%emt 0:00:39]} 1/2-1/2

[Event "Rapidturnier Deutsche Meister"]
[Site "Leipzig"]
[Date "2020.10.03"]
[Round "4.7"]
[White "Goehler, Antje"]
[Black "Mai, Iris"]
[Result "1/2-1/2"]
[ECO "D45"]
[WhiteElo "2102"]
[BlackElo "2021"]
[Annotator "ChessBase"]
[PlyCount "38"]
[EventDate "2020.10.03"]
[EventType "swiss"]
[EventCountry "GER"]
[SourceTitle "playchess.com"]
[Source "ChessBase"]
[SourceQuality "1"]
[TimeControl "900+5"]

1. d4 {[%emt 0:00:00]} Nf6 {[%emt 0:00:00]} 2. Nf3 {[%emt 0:00:00]} e6 {[%emt 0:00:01]} 3. c4 {[%emt 0:00:01]} d5 {[%emt 0:00:09]} 4. Nc3 {[%emt 0:00:03]} c6 {[%emt 0:00:05]} 5. e3 {[%emt 0:00:03]} Nbd7 {[%emt 0:00:10]} 6. Qc2 {[%emt 0:00:03]} Be7 {[%emt 0:01:07]} 7. b3 {[%emt 0:00:05]} O-O {[%emt 0:00:05]} 8. Bb2 {[%emt 0:00:02]} Re8 {[%emt 0:02:59]} 9. Bd3 {[%emt 0:00:12]} Nf8 {[%emt 0:00:02]} 10. O-O {[%emt 0:00:07]} h6 {[%emt 0:00:52]} 11. e4 {[%emt 0:00:09]} dxe4 {[%emt 0:00:23]} 12. Nxe4 {[%emt 0:00:03]} Nxe4 {[%emt 0:00:03]} 13. Bxe4 {[%emt 0:00:02]} Bf6 {[%emt 0:00:03]} 14. Rad1 {[%emt 0:00:18]} Qa5 {[%emt 0:00:21]} 15. Bc3 {[%emt 0:00:41]} Qh5 {[%emt 0:00:06]} 16. Ne5 {[%emt 0:01:05]} Bd7 {[%emt 0:00:59]} 17. Bf3 {[%emt 0:00:13]} Qf5 {[%emt 0:00:34]} 18. Be4 {[%emt 0:00:44]} Qh5 {[%emt 0:00:02]} 19. Bf3 {[%emt 0:01:02]} Qf5 {[%emt 0:00:02]} 1/2-1/2

[Event "Rapidturnier Deutsche Meister"]
[Site "Leipzig"]
[Date "2020.10.03"]
[Round "4.8"]
[White "Burchardt, Brigitte"]
[Black "Just, Gabriele"]
[Result "1-0"]
[ECO "C04"]
[WhiteElo "2067"]
[BlackElo "1837"]
[Annotator "ChessBase"]
[PlyCount "133"]
[EventDate "2020.10.03"]
[EventType "swiss"]
[EventCountry "GER"]
[SourceTitle "playchess.com"]
[Source "ChessBase"]
[SourceQuality "1"]
[TimeControl "900+5"]

1. e4 e6 {[%emt 0:00:02]} 2. d4 {[%emt 0:00:02]} d5 {[%emt 0:00:01]} 3. Nd2 {[%emt 0:00:02]} Nc6 {[%emt 0:00:03]} 4. Ngf3 {[%emt 0:00:04]} Nf6 {[%emt 0:00:08]} 5. e5 {[%emt 0:00:25]} Nd7 {[%emt 0:00:01]} 6. c3 {[%emt 0:00:21]} f6 {[%emt 0:00:26]} 7. exf6 {[%emt 0:01:20]} Qxf6 {[%emt 0:00:08]} 8. Bb5 {[%emt 0:00:55]} Bd6 {[%emt 0:00:22]} 9. Nf1 {[%emt 0:01:00]} O-O {[%emt 0:00:47]} 10. Bg5 {[%emt 0:02:26]} Qf7 {[%emt 0:00:14]} 11. Qd2 {[%emt 0:00:13]} e5 {[%emt 0:00:41]} 12. dxe5 {[%emt 0:00:24]} Ncxe5 {[%emt 0:00:17]} 13. Nxe5 {[%emt 0:00:09]} Nxe5 {[%emt 0:00:25]} 14. Ne3 {[%emt 0:02:08]} c6 {[%emt 0:00:14]} 15. Ba4 {[%emt 0:00:02]} Be6 {[%emt 0:01:15]} 16. O-O {[%emt 0:00:14]} Qh5 {[%emt 0:00:32]} 17. f4 {[%emt 0:00:50]} Ng4 {[%emt 0:01:38]} 18. Nxg4 {[%emt 0:00:01]} Bxg4 {[%emt 0:00:02]} 19. Rae1 {[%emt 0:00:03]} Rae8 {[%emt 0:00:11]} 20. h3 {[%emt 0:01:44]} Bd7 {[%emt 0:00:21]} 21. Bd1 {[%emt 0:00:01]} Qg6 {[%emt 0:00:11]} 22. Bc2 {[%emt 0:00:17]} Qh5 {[%emt 0:00:25]} 23. Bd1 {[%emt 0:00:01]} Qf7 {[%emt 0:00:03]} 24. Rxe8 {[%emt 0:00:21]} Rxe8 {[%emt 0:00:06]} 25. Bc2 {[%emt 0:00:15]} Bf5 {[%emt 0:00:48]} 26. Bxf5 {[%emt 0:00:01]} Qxf5 {[%emt 0:00:02]} 27. Bh4 {[%emt 0:00:52]} Qh5 {[%emt 0:00:50]} 28. Bg3 {[%emt 0:00:28]} g5 {[%emt 0:00:15]} 29. Qd4 {[%emt 0:00:30]} Re4 {[%emt 0:01:08]} 30. Qf6 {[%emt 0:00:09]} Qg6 {[%emt 0:00:13]} 31. Qd8+ {[%emt 0:00:07]} Re8 {[%emt 0:00:10]} 32. Qd7 {[%emt 0:00:17]} Re7 {[%emt 0:00:48]} 33. Qc8+ {[%emt 0:00:02]} Qe8 {[%emt 0:01:14]} 34. Qxe8+ {[%emt 0:00:02]} Rxe8 {[%emt 0:00:00]} 35. h4 {[%emt 0:00:17]} h6 {[%emt 0:00:20]} 36. hxg5 {[%emt 0:00:02]} hxg5 {[%emt 0:00:01]} 37. Rf3 {[%emt 0:00:10]} g4 {[%emt 0:00:15]} 38. Rf2 {[%emt 0:00:11]} Re1+ {[%emt 0:00:11]} 39. Kh2 {[%emt 0:00:03]} Kf7 {[%emt 0:00:08]} 40. Rd2 {[%emt 0:00:10]} Kf6 {[%emt 0:00:07]} 41. Bxe1 {[%emt 0:00:02]} Bxf4+ {[%emt 0:00:05]} 42. g3 {[%emt 0:00:01]} Bxd2 {[%emt 0:00:11]} 43. Bxd2 {[%emt 0:00:01]} Kf5 {[%emt 0:00:02]} 44. Be3 {[%emt 0:00:06]} b6 {[%emt 0:00:05]} 45. b4 {[%emt 0:00:01]} Ke4 {[%emt 0:00:01]} 46. Bd4 {[%emt 0:00:01]} Kd3 {[%emt 0:00:08]} 47. a4 {[%emt 0:00:06]} Kc4 {[%emt 0:00:04]} 48. Kg2 {[%emt 0:00:01]} c5 {[%emt 0:00:01]} 49. bxc5 {[%emt 0:00:01]} bxc5 {[%emt 0:00:01]} 50. Bf6 {[%emt 0:00:02]} d4 {[%emt 0:00:09]} 51. cxd4 {[%emt 0:00:01]} cxd4 {[%emt 0:00:01]} 52. Kf2 {[%emt 0:00:00]} Kd3 {[%emt 0:00:18]} 53. a5 {[%emt 0:00:06]} a6 {[%emt 0:00:01]} 54. Be5 {[%emt 0:00:01]} Ke4 {[%emt 0:00:05]} 55. Bf4 {[%emt 0:00:01]} Kd3 {[%emt 0:00:06]} 56. Ke1 {[%emt 0:00:04]} Kc2 {[%emt 0:00:14]} 57. Bg5 {[%emt 0:00:17]} Kd3 {[%emt 0:00:07]} 58. Kd1 {[%emt 0:00:02]} Kc3 {[%emt 0:00:07]} 59. Ke2 {[%emt 0:00:32]} Kc4 {[%emt 0:00:07]} 60. Kd2 {[%emt 0:00:03]} Kb5 {[%emt 0:00:25]} 61. Bd8 {[%emt 0:00:02]} Kc4 {[%emt 0:00:05]} 62. Bb6 {[%emt 0:00:01]} d3 {[%emt 0:01:10]} 63. Bd8 {[%emt 0:00:01]} Kd4 {[%emt 0:00:08]} 64. Bg5 {[%emt 0:00:13]} Kc4 {[%emt 0:01:00]} 65. Bf6 {[%emt 0:01:02]} Kb5 {[%emt 0:00:08]} 66. Bd8 {[%emt 0:00:01]} Kc4 {[%emt 0:00:01]} 67. Bb6 {[%emt 0:00:10]} 1-0